Workbook

Sheet ProjectInformation
A1: CPN DATA
A2: INFORMATION ADDED BY DESIGNER
A3: Section Engineer | B3: Flattery
A4: Design Team | B4: Johnson
A6: County | B6: TAMA
A7: Project Number | B7: NHSX-030-6(189)--3H-86
A8: English or Metric | B8: ENGLISH
A9: Revised
A10: Bridge Block
A11: File No.

Sheet PrintSheets
B94: FILE NO. | I94: =IF(ProjectInformation!$B$11<>"",ProjectInformation!$B$11,"") ->  | P94: =UPPER(ProjectInformation!B8) -> ENGLISH | W94: DESIGN TEAM | AF94: =IF(AND(ProjectInformation!$B$3<>"",ProjectInformation!$B$4<>"",ProjectInformation!$B$5<>""),ProjectInformation!$B$3&"\"&ProjectInformation!$B$4&"\"&ProjectInformation!$B$5,IF(AND(ProjectInformation!$B$3<>"",ProjectInformation!$B$4<>""),ProjectInformation!$B$3&"\"&ProjectInformation!$B$4,IF(ProjectInformation!$B$3<>"",ProjectInformation!$B$3,""))) -> Flattery\Johnson | BN94: =IF(ProjectInformation!$B$6<>"",ProjectInformation!$B$6,"") -> TAMA | CX94: COUNTY | DD94: PROJECT NUMBER | DP94: =IF(ProjectInformation!$B$7<>"",ProjectInformation!$B$7,"") -> NHSX-030-6(189)--3H-86 | ET94: SHEET NUMBER | FD94: C.12 | FJ94: =IF(FP94<>"","REVISED","") ->  | FP94: =IF(ProjectInformation!$B$9<>"",ProjectInformation!$B$9,"") -> 
B95: 2/6/2018 10:23:23 AM ajohns1 c:\pw_work\pwmain\ajohns1\d0569206\86030189_C02_Tab110-9.xlsm

Sheet DE110_9
A1: TabTitle | B1: =C16 -> CULVERT ABANDONMENT
A2: Number of Tab Columns | B2: 6
A3: DE Starter Row Number | B3: 26
A4: TabSheet Starter Row Number | B4: 12
A5: TabSheet Header Row Count | B5: 11
A6: Top Header Cell | B6: J15
A7: Bottom Header Cell | B7: O25
A8: DESheet Row Count | B8: 23
A9: Fixed Empty Rows | B9: 2
A10: Usable Empty Rows | B10: 0
A11: Total Rows Placed | B11: 25 | C11: xlRight(1) | D11: xlLeft(1) | E11: xlRight(1) | F11: xlRight(1) | G11: xlRight(1) | H11: xlLeft(1) | J11: =C11 -> xlRight(1) | K11: =D11 -> xlLeft(1) | L11: xlRight(1) | M11: xlRight(1) | N11: xlRight(1) | O11: xlLeft(1)
A12: Total Rows Needed | B12: =SUM(B8:B10) -> 25 | C12: #+00.00 | D12: General | E12: 0.0 | F12: 0.0 | G12: 0.0 | H12: General | J12: =C12 -> #+00.00 | K12: General | L12: 0.0 | M12: 0.0 | N12: 0.0 | O12: General
A13: Last Tab DE Starter Row | B13: 26 | C13: =CELL("Width",C13) -> 30 | D13: 50 | E13: 17 | F13: 20 | G13: 14 | H13: 70 | J13: =CELL("Width",J13) -> 0 | K13: 0 | L13: 0 | M13: 0 | N13: 0 | O13: 0
A14: Last Tab TabSheet Starter Row | B14: 12 | C14: A | D14: B | E14: C | F14: D | G14: E | H14: F | J14: a | K14: b | L14: c | M14: d | N14: e | O14: f
A15: Last Copy Starter Row | B15: 1 | D15: Totals: | E15: =SUBTOTAL(9,E26:E6000) -> 6514.951852 | F15: =SUBTOTAL(9,F26:F6000) -> 15.94364323 | G15: =SUBTOTAL(9,G26:G6000) -> 543 | J15: 110-9
A16: Tab Loop Number | B16: 2 | C16: CULVERT ABANDONMENT | J16: =B17 -> 2011-10-18
A17: Revision Date | B17: 2011-10-18 | J17: =C16 -> CULVERT ABANDONMENT
A18: Tabulation Width | B18: 2 | C18: Refer to Details 4315 and 4316
A19: Horizontal Grid Lines | B19: Yes | C19: * Not a bid item | J19: =C18 -> Refer to Details 4315 and 4316
C20: ="This Data Entry Sheet fills Tab "&J15&" effective "&TEXT(B17,"mm-dd-yy") -> This Data Entry Sheet fills Tab 110-9 effective 10-18-11 | J20: =C19 -> * Not a bid item
C21: Location Station | D21: Description | E21: Fill Material | G21: 4" Perforated Subdrain* | H21: Remarks | J21: =C21 -> Location Station | K21: =D21 -> Description | L21: =E21 -> Fill Material | N21: =G21 -> 4" Perforated Subdrain* | O21: =H21 -> Remarks
E22: Flowable Mortar | F22: Granular Backfill* | L22: =E22 -> Flowable Mortar | M22: =F22 -> Granular Backfill*
E25: CY | F25: TON | G25: LF | L25: =E25 -> CY | M25: =F25 -> TON | N25: =G25 -> LF
C26: 453+84.52, 162.69' Rt. | D26: 3.7'x5.5'x178' Conc. Arch Culvert | E26: =(Calculations!K4+Calculations!L4+Calculations!Y4+Calculations!Z4+Calculations!AH4)/27 -> 291.5392593 | F26: =((Calculations!M4+Calculations!AA4)*125)/2000 -> 0.2430701563 | G26: =Calculations!AB4 -> 14 | H26: with 4'x5'x249' RCB Extensions
C27: 459+60.87, 168.59' Rt. | D27: 3.7'x5.5'x147' Conc. Arch Culvert | E27: =(Calculations!K5+Calculations!L5+Calculations!Y5+Calculations!Z5+Calculations!AH5)/27 -> 247.7077778 | F27: =((Calculations!M5+Calculations!AA5)*125)/2000 -> 0.2430701563 | G27: =Calculations!AB5 -> 14 | H27: with 4'x5'x117' RCB Extensions and 24"x156' CMP Tee
C28: 475+31.53, 157.92' Rt. | D28: 3'x3'x241' RCB | E28: =(Calculations!K6+Calculations!L6+Calculations!Y6+Calculations!Z6+Calculations!AH6)/27 -> 80.2037037 | F28: =((Calculations!M6+Calculations!AA6)*125)/2000 -> 0.1914784549 | G28: =Calculations!N6 -> 10
C29: 493+95.50, 152.76' Rt. | D29: 5'x7'x280' RCB | E29: =(Calculations!K7+Calculations!L7+Calculations!Y7+Calculations!Z7+Calculations!AH7)/27 -> 362.7592593 | F29: =((Calculations!M7+Calculations!AA7)*125)/2000 -> 0.2946618576 | G29: =Calculations!N7 -> 18
C30: 497+75.15, 151.70' Rt. | D30: 2'x2'x145' RCB | E30: =(Calculations!K8+Calculations!L8+Calculations!Y8+Calculations!Z8+Calculations!AH8)/27 -> 21.37037037 | F30: =((Calculations!M8+Calculations!AA8)*125)/2000 -> 0.1656826042 | G30: =Calculations!N8 -> 8
C31: 511+30.61, 147.95' Rt. | D31: 4.75'x6'x287' Conc. Arch Culvert | E31: =(Calculations!K9+Calculations!L9+Calculations!Y9+Calculations!Z9+Calculations!AH9)/27 -> 241.7492593 | F31: =((Calculations!M9+Calculations!AA9)*125)/2000 -> 0.7984075 | G31: =Calculations!N9 -> 16
C32: 531+45.64, 134.84' Rt. | D32: 4'x4'x189' RCB | E32: =(Calculations!K10+Calculations!L10+Calculations!Y10+Calculations!Z10+Calculations!AH10)/27 -> 111.8518519 | F32: =((Calculations!M10+Calculations!AA10)*125)/2000 -> 0.2172743056 | G32: =Calculations!N10 -> 12
C33: 538+86.05, 138.76' Rt. | D33: 5.5'x8'x141' Conc. Arch Culvert | E33: =(Calculations!K11+Calculations!L11+Calculations!Y11+Calculations!Z11+Calculations!AH11)/27 -> 183.1611111 | F33: =((Calculations!M11+Calculations!AA11)*125)/2000 -> 0.9709075 | G33: =Calculations!N11 -> 20
C34: 554+57.18, 145.52' Rt. | D34: 2'x2'x161' RCB | E34: =(Calculations!K12+Calculations!L12+Calculations!Y12+Calculations!Z12+Calculations!AH12)/27 -> 23.74074074 | F34: =((Calculations!M12+Calculations!AA12)*125)/2000 -> 0.1656826042 | G34: =Calculations!N12 -> 8
C35: 556+89.66, 146.29' Rt. | D35: 2'x2'x216' RCB | E35: =(Calculations!K13+Calculations!L13+Calculations!Y13+Calculations!Z13+Calculations!AH13)/27 -> 31.88888889 | F35: =((Calculations!M13+Calculations!AA13)*125)/2000 -> 0.1656826042 | G35: =Calculations!N13 -> 8
C36: 558+77.37, 146.91' Rt. | D36: 24"x163' RCP | E36: =(Calculations!K14+Calculations!L14+Calculations!Y14+Calculations!Z14+Calculations!AH14)/27 -> 18.86592593 | F36: =((Calculations!M14+Calculations!AA14)*125)/2000 -> 0.1434075 | G36: =Calculations!N14 -> 8
C37: 566+82.25, 149.58' Rt. | D37: 5'x5'x170' RCB | E37: =(Calculations!K15+Calculations!L15+Calculations!Y15+Calculations!Z15+Calculations!AH15)/27 -> 157.2407407 | F37: =((Calculations!M15+Calculations!AA15)*125)/2000 -> 0.2430701563 | G37: =Calculations!N15 -> 14
C38: 577+31.18, 153.06' Rt. | D38: 6.25'x9.25'x271' Conc. Arch Culvert | E38: =(Calculations!K16+Calculations!L16+Calculations!Y16+Calculations!Z16+Calculations!AH16)/27 -> 463.3055556 | F38: =((Calculations!M16+Calculations!AA16)*125)/2000 -> 1.1371575 | G38: =Calculations!N16 -> 22.5
C39: 593+45.94, 158.41' Rt. | D39: 3.7'x5.5'x320' Conc. Arch Culvert | E39: =(Calculations!K17+Calculations!L17+Calculations!Y17+Calculations!Z17+Calculations!AH17)/27 -> 192.4461111 | F39: =((Calculations!M17+Calculations!AA17)*125)/2000 -> 0.6046575 | G39: =Calculations!N17 -> 15
C40: 612+43.88, 158.62' Rt. | D40: 4.75'x6'x308' Conc. Arch Culvert | E40: =(Calculations!K18+Calculations!L18+Calculations!Y18+Calculations!Z18+Calculations!AH18)/27 -> 259.4748148 | F40: =((Calculations!M18+Calculations!AA18)*125)/2000 -> 0.7984075 | G40: =Calculations!N18 -> 16
C41: 626+42.71, 155.01' Rt. | D41: 3.7'x5.5'x281' Conc. Arch Culvert | E41: =(Calculations!K19+Calculations!L19+Calculations!Y19+Calculations!Z19+Calculations!AH19)/27 -> 168.945 | F41: =((Calculations!M19+Calculations!AA19)*125)/2000 -> 0.6046575 | G41: =Calculations!N19 -> 15
C42: 654+57.52, 134.34' Rt. | D42: 4.75'x6'x196' Conc. Arch Culvert | E42: =(Calculations!K20+Calculations!L20+Calculations!Y20+Calculations!Z20+Calculations!AH20)/27 -> 257.2088889 | F42: =((Calculations!M20+Calculations!AA20)*125)/2000 -> 0.2688660069 | G42: =Calculations!AB20 -> 16 | H42: with 5'x6'x66' RCB Extension and 24"x40' CMP Tee
C43: 661+02.08, 130.50' Rt. | D43: 2'x2'x130' RCB | E43: =(Calculations!K21+Calculations!L21+Calculations!Y21+Calculations!Z21+Calculations!AH21)/27 -> 19.14814815 | F43: =((Calculations!M21+Calculations!AA21)*125)/2000 -> 0.1656826042 | G43: =Calculations!N21 -> 8
C44: 664+83.45, 115.98' Rt. | D44: 2'x2'x105' RCB | E44: =(Calculations!K22+Calculations!L22+Calculations!Y22+Calculations!Z22+Calculations!AH22)/27 -> 18.71777778 | F44: =((Calculations!M22+Calculations!AA22)*125)/2000 -> 0.1656826042 | G44: =Calculations!N22 -> 8 | H44: with 30"x18' RCP Extension
C45: 668+87.97, 90.61' Rt. | D45: 3'x3'x131' RCB | E45: =(Calculations!K23+Calculations!L23+Calculations!Y23+Calculations!Z23+Calculations!AH23)/27 -> 64.5637037 | F45: =((Calculations!M23+Calculations!AA23)*125)/2000 -> 0.2009075 | G45: =Calculations!AB23 -> 11 | H45: with 42"x59' RCP Extension
C46: 671+20.30, 75.69' Rt. | D46: 2'x3'x104' RCB | E46: =(Calculations!K24+Calculations!L24+Calculations!Y24+Calculations!Z24+Calculations!AH24)/27 -> 41.58703704 | F46: =((Calculations!M24+Calculations!AA24)*125)/2000 -> 0.1834075 | G46: =Calculations!AB24 -> 10 | H46: with 36"x71' RCP Extensions
C48: TOTALS: | E48: =SUM(E26:E46) -> 3257.475926 | F48: =SUM(F26:F46) -> 7.971821615 | G48: =SUM(G26:G46) -> 271.5

Sheet 110_9
A1: 110-9
A2: 2011-10-18
A3: CULVERT ABANDONMENT
A5: Refer to Details 4315 and 4316
A6: * Not a bid item
A7: Location Station | B7: Description | C7: Fill Material | E7: 4" Perforated Subdrain* | F7: Remarks
C8: Flowable Mortar | D8: Granular Backfill*
C11: CY | D11: TON | E11: LF
A12: =IF(OFFSET(DE110_9!$C$26,ROWS($C$26:C26)-1,COLUMNS($C$26:C26)-1)<>"",OFFSET(DE110_9!$C$26,ROWS($C$26:C26)-1,COLUMNS($C$26:C26)-1),"") -> 453+84.52, 162.69' Rt. | B12: =IF(OFFSET(DE110_9!$D$26,ROWS($D$26:D26)-1,COLUMNS($D$26:D26)-1)<>"",OFFSET(DE110_9!$D$26,ROWS($D$26:D26)-1,COLUMNS($D$26:D26)-1),"") -> 3.7'x5.5'x178' Conc. Arch Culvert | C12: =IF(OFFSET(DE110_9!$E$26,ROWS($E$26:E26)-1,COLUMNS($E$26:E26)-1)<>"",OFFSET(DE110_9!$E$26,ROWS($E$26:E26)-1,COLUMNS($E$26:E26)-1),"") -> 291.5392593 | D12: =IF(OFFSET(DE110_9!$F$26,ROWS($F$26:F26)-1,COLUMNS($F$26:F26)-1)<>"",OFFSET(DE110_9!$F$26,ROWS($F$26:F26)-1,COLUMNS($F$26:F26)-1),"") -> 0.2430701563 | E12: =IF(OFFSET(DE110_9!$G$26,ROWS($G$26:G26)-1,COLUMNS($G$26:G26)-1)<>"",OFFSET(DE110_9!$G$26,ROWS($G$26:G26)-1,COLUMNS($G$26:G26)-1),"") -> 14 | F12: =IF(OFFSET(DE110_9!$H$26,ROWS($H$26:H26)-1,COLUMNS($H$26:H26)-1)<>"",OFFSET(DE110_9!$H$26,ROWS($H$26:H26)-1,COLUMNS($H$26:H26)-1),"") -> with 4'x5'x249' RCB Extensions
A13: =IF(OFFSET(DE110_9!$C$26,ROWS($C$26:C27)-1,COLUMNS($C$26:C27)-1)<>"",OFFSET(DE110_9!$C$26,ROWS($C$26:C27)-1,COLUMNS($C$26:C27)-1),"") -> 459+60.87, 168.59' Rt. | B13: =IF(OFFSET(DE110_9!$D$26,ROWS($D$26:D27)-1,COLUMNS($D$26:D27)-1)<>"",OFFSET(DE110_9!$D$26,ROWS($D$26:D27)-1,COLUMNS($D$26:D27)-1),"") -> 3.7'x5.5'x147' Conc. Arch Culvert | C13: =IF(OFFSET(DE110_9!$E$26,ROWS($E$26:E27)-1,COLUMNS($E$26:E27)-1)<>"",OFFSET(DE110_9!$E$26,ROWS($E$26:E27)-1,COLUMNS($E$26:E27)-1),"") -> 247.7077778 | D13: =IF(OFFSET(DE110_9!$F$26,ROWS($F$26:F27)-1,COLUMNS($F$26:F27)-1)<>"",OFFSET(DE110_9!$F$26,ROWS($F$26:F27)-1,COLUMNS($F$26:F27)-1),"") -> 0.2430701563 | E13: =IF(OFFSET(DE110_9!$G$26,ROWS($G$26:G27)-1,COLUMNS($G$26:G27)-1)<>"",OFFSET(DE110_9!$G$26,ROWS($G$26:G27)-1,COLUMNS($G$26:G27)-1),"") -> 14 | F13: =IF(OFFSET(DE110_9!$H$26,ROWS($H$26:H27)-1,COLUMNS($H$26:H27)-1)<>"",OFFSET(DE110_9!$H$26,ROWS($H$26:H27)-1,COLUMNS($H$26:H27)-1),"") -> with 4'x5'x117' RCB Extensions and 24"x156' CMP Tee
A14: =IF(OFFSET(DE110_9!$C$26,ROWS($C$26:C28)-1,COLUMNS($C$26:C28)-1)<>"",OFFSET(DE110_9!$C$26,ROWS($C$26:C28)-1,COLUMNS($C$26:C28)-1),"") -> 475+31.53, 157.92' Rt. | B14: =IF(OFFSET(DE110_9!$D$26,ROWS($D$26:D28)-1,COLUMNS($D$26:D28)-1)<>"",OFFSET(DE110_9!$D$26,ROWS($D$26:D28)-1,COLUMNS($D$26:D28)-1),"") -> 3'x3'x241' RCB | C14: =IF(OFFSET(DE110_9!$E$26,ROWS($E$26:E28)-1,COLUMNS($E$26:E28)-1)<>"",OFFSET(DE110_9!$E$26,ROWS($E$26:E28)-1,COLUMNS($E$26:E28)-1),"") -> 80.2037037 | D14: =IF(OFFSET(DE110_9!$F$26,ROWS($F$26:F28)-1,COLUMNS($F$26:F28)-1)<>"",OFFSET(DE110_9!$F$26,ROWS($F$26:F28)-1,COLUMNS($F$26:F28)-1),"") -> 0.1914784549 | E14: =IF(OFFSET(DE110_9!$G$26,ROWS($G$26:G28)-1,COLUMNS($G$26:G28)-1)<>"",OFFSET(DE110_9!$G$26,ROWS($G$26:G28)-1,COLUMNS($G$26:G28)-1),"") -> 10 | F14: =IF(OFFSET(DE110_9!$H$26,ROWS($H$26:H28)-1,COLUMNS($H$26:H28)-1)<>"",OFFSET(DE110_9!$H$26,ROWS($H$26:H28)-1,COLUMNS($H$26:H28)-1),"") -> 
A15: =IF(OFFSET(DE110_9!$C$26,ROWS($C$26:C29)-1,COLUMNS($C$26:C29)-1)<>"",OFFSET(DE110_9!$C$26,ROWS($C$26:C29)-1,COLUMNS($C$26:C29)-1),"") -> 493+95.50, 152.76' Rt. | B15: =IF(OFFSET(DE110_9!$D$26,ROWS($D$26:D29)-1,COLUMNS($D$26:D29)-1)<>"",OFFSET(DE110_9!$D$26,ROWS($D$26:D29)-1,COLUMNS($D$26:D29)-1),"") -> 5'x7'x280' RCB | C15: =IF(OFFSET(DE110_9!$E$26,ROWS($E$26:E29)-1,COLUMNS($E$26:E29)-1)<>"",OFFSET(DE110_9!$E$26,ROWS($E$26:E29)-1,COLUMNS($E$26:E29)-1),"") -> 362.7592593 | D15: =IF(OFFSET(DE110_9!$F$26,ROWS($F$26:F29)-1,COLUMNS($F$26:F29)-1)<>"",OFFSET(DE110_9!$F$26,ROWS($F$26:F29)-1,COLUMNS($F$26:F29)-1),"") -> 0.2946618576 | E15: =IF(OFFSET(DE110_9!$G$26,ROWS($G$26:G29)-1,COLUMNS($G$26:G29)-1)<>"",OFFSET(DE110_9!$G$26,ROWS($G$26:G29)-1,COLUMNS($G$26:G29)-1),"") -> 18 | F15: =IF(OFFSET(DE110_9!$H$26,ROWS($H$26:H29)-1,COLUMNS($H$26:H29)-1)<>"",OFFSET(DE110_9!$H$26,ROWS($H$26:H29)-1,COLUMNS($H$26:H29)-1),"") -> 
A16: =IF(OFFSET(DE110_9!$C$26,ROWS($C$26:C30)-1,COLUMNS($C$26:C30)-1)<>"",OFFSET(DE110_9!$C$26,ROWS($C$26:C30)-1,COLUMNS($C$26:C30)-1),"") -> 497+75.15, 151.70' Rt. | B16: =IF(OFFSET(DE110_9!$D$26,ROWS($D$26:D30)-1,COLUMNS($D$26:D30)-1)<>"",OFFSET(DE110_9!$D$26,ROWS($D$26:D30)-1,COLUMNS($D$26:D30)-1),"") -> 2'x2'x145' RCB | C16: =IF(OFFSET(DE110_9!$E$26,ROWS($E$26:E30)-1,COLUMNS($E$26:E30)-1)<>"",OFFSET(DE110_9!$E$26,ROWS($E$26:E30)-1,COLUMNS($E$26:E30)-1),"") -> 21.37037037 | D16: =IF(OFFSET(DE110_9!$F$26,ROWS($F$26:F30)-1,COLUMNS($F$26:F30)-1)<>"",OFFSET(DE110_9!$F$26,ROWS($F$26:F30)-1,COLUMNS($F$26:F30)-1),"") -> 0.1656826042 | E16: =IF(OFFSET(DE110_9!$G$26,ROWS($G$26:G30)-1,COLUMNS($G$26:G30)-1)<>"",OFFSET(DE110_9!$G$26,ROWS($G$26:G30)-1,COLUMNS($G$26:G30)-1),"") -> 8 | F16: =IF(OFFSET(DE110_9!$H$26,ROWS($H$26:H30)-1,COLUMNS($H$26:H30)-1)<>"",OFFSET(DE110_9!$H$26,ROWS($H$26:H30)-1,COLUMNS($H$26:H30)-1),"") -> 
A17: =IF(OFFSET(DE110_9!$C$26,ROWS($C$26:C31)-1,COLUMNS($C$26:C31)-1)<>"",OFFSET(DE110_9!$C$26,ROWS($C$26:C31)-1,COLUMNS($C$26:C31)-1),"") -> 511+30.61, 147.95' Rt. | B17: =IF(OFFSET(DE110_9!$D$26,ROWS($D$26:D31)-1,COLUMNS($D$26:D31)-1)<>"",OFFSET(DE110_9!$D$26,ROWS($D$26:D31)-1,COLUMNS($D$26:D31)-1),"") -> 4.75'x6'x287' Conc. Arch Culvert | C17: =IF(OFFSET(DE110_9!$E$26,ROWS($E$26:E31)-1,COLUMNS($E$26:E31)-1)<>"",OFFSET(DE110_9!$E$26,ROWS($E$26:E31)-1,COLUMNS($E$26:E31)-1),"") -> 241.7492593 | D17: =IF(OFFSET(DE110_9!$F$26,ROWS($F$26:F31)-1,COLUMNS($F$26:F31)-1)<>"",OFFSET(DE110_9!$F$26,ROWS($F$26:F31)-1,COLUMNS($F$26:F31)-1),"") -> 0.7984075 | E17: =IF(OFFSET(DE110_9!$G$26,ROWS($G$26:G31)-1,COLUMNS($G$26:G31)-1)<>"",OFFSET(DE110_9!$G$26,ROWS($G$26:G31)-1,COLUMNS($G$26:G31)-1),"") -> 16 | F17: =IF(OFFSET(DE110_9!$H$26,ROWS($H$26:H31)-1,COLUMNS($H$26:H31)-1)<>"",OFFSET(DE110_9!$H$26,ROWS($H$26:H31)-1,COLUMNS($H$26:H31)-1),"") -> 
A18: =IF(OFFSET(DE110_9!$C$26,ROWS($C$26:C32)-1,COLUMNS($C$26:C32)-1)<>"",OFFSET(DE110_9!$C$26,ROWS($C$26:C32)-1,COLUMNS($C$26:C32)-1),"") -> 531+45.64, 134.84' Rt. | B18: =IF(OFFSET(DE110_9!$D$26,ROWS($D$26:D32)-1,COLUMNS($D$26:D32)-1)<>"",OFFSET(DE110_9!$D$26,ROWS($D$26:D32)-1,COLUMNS($D$26:D32)-1),"") -> 4'x4'x189' RCB | C18: =IF(OFFSET(DE110_9!$E$26,ROWS($E$26:E32)-1,COLUMNS($E$26:E32)-1)<>"",OFFSET(DE110_9!$E$26,ROWS($E$26:E32)-1,COLUMNS($E$26:E32)-1),"") -> 111.8518519 | D18: =IF(OFFSET(DE110_9!$F$26,ROWS($F$26:F32)-1,COLUMNS($F$26:F32)-1)<>"",OFFSET(DE110_9!$F$26,ROWS($F$26:F32)-1,COLUMNS($F$26:F32)-1),"") -> 0.2172743056 | E18: =IF(OFFSET(DE110_9!$G$26,ROWS($G$26:G32)-1,COLUMNS($G$26:G32)-1)<>"",OFFSET(DE110_9!$G$26,ROWS($G$26:G32)-1,COLUMNS($G$26:G32)-1),"") -> 12 | F18: =IF(OFFSET(DE110_9!$H$26,ROWS($H$26:H32)-1,COLUMNS($H$26:H32)-1)<>"",OFFSET(DE110_9!$H$26,ROWS($H$26:H32)-1,COLUMNS($H$26:H32)-1),"") -> 
A19: =IF(OFFSET(DE110_9!$C$26,ROWS($C$26:C33)-1,COLUMNS($C$26:C33)-1)<>"",OFFSET(DE110_9!$C$26,ROWS($C$26:C33)-1,COLUMNS($C$26:C33)-1),"") -> 538+86.05, 138.76' Rt. | B19: =IF(OFFSET(DE110_9!$D$26,ROWS($D$26:D33)-1,COLUMNS($D$26:D33)-1)<>"",OFFSET(DE110_9!$D$26,ROWS($D$26:D33)-1,COLUMNS($D$26:D33)-1),"") -> 5.5'x8'x141' Conc. Arch Culvert | C19: =IF(OFFSET(DE110_9!$E$26,ROWS($E$26:E33)-1,COLUMNS($E$26:E33)-1)<>"",OFFSET(DE110_9!$E$26,ROWS($E$26:E33)-1,COLUMNS($E$26:E33)-1),"") -> 183.1611111 | D19: =IF(OFFSET(DE110_9!$F$26,ROWS($F$26:F33)-1,COLUMNS($F$26:F33)-1)<>"",OFFSET(DE110_9!$F$26,ROWS($F$26:F33)-1,COLUMNS($F$26:F33)-1),"") -> 0.9709075 | E19: =IF(OFFSET(DE110_9!$G$26,ROWS($G$26:G33)-1,COLUMNS($G$26:G33)-1)<>"",OFFSET(DE110_9!$G$26,ROWS($G$26:G33)-1,COLUMNS($G$26:G33)-1),"") -> 20 | F19: =IF(OFFSET(DE110_9!$H$26,ROWS($H$26:H33)-1,COLUMNS($H$26:H33)-1)<>"",OFFSET(DE110_9!$H$26,ROWS($H$26:H33)-1,COLUMNS($H$26:H33)-1),"") -> 
A20: =IF(OFFSET(DE110_9!$C$26,ROWS($C$26:C34)-1,COLUMNS($C$26:C34)-1)<>"",OFFSET(DE110_9!$C$26,ROWS($C$26:C34)-1,COLUMNS($C$26:C34)-1),"") -> 554+57.18, 145.52' Rt. | B20: =IF(OFFSET(DE110_9!$D$26,ROWS($D$26:D34)-1,COLUMNS($D$26:D34)-1)<>"",OFFSET(DE110_9!$D$26,ROWS($D$26:D34)-1,COLUMNS($D$26:D34)-1),"") -> 2'x2'x161' RCB | C20: =IF(OFFSET(DE110_9!$E$26,ROWS($E$26:E34)-1,COLUMNS($E$26:E34)-1)<>"",OFFSET(DE110_9!$E$26,ROWS($E$26:E34)-1,COLUMNS($E$26:E34)-1),"") -> 23.74074074 | D20: =IF(OFFSET(DE110_9!$F$26,ROWS($F$26:F34)-1,COLUMNS($F$26:F34)-1)<>"",OFFSET(DE110_9!$F$26,ROWS($F$26:F34)-1,COLUMNS($F$26:F34)-1),"") -> 0.1656826042 | E20: =IF(OFFSET(DE110_9!$G$26,ROWS($G$26:G34)-1,COLUMNS($G$26:G34)-1)<>"",OFFSET(DE110_9!$G$26,ROWS($G$26:G34)-1,COLUMNS($G$26:G34)-1),"") -> 8 | F20: =IF(OFFSET(DE110_9!$H$26,ROWS($H$26:H34)-1,COLUMNS($H$26:H34)-1)<>"",OFFSET(DE110_9!$H$26,ROWS($H$26:H34)-1,COLUMNS($H$26:H34)-1),"") -> 
A21: =IF(OFFSET(DE110_9!$C$26,ROWS($C$26:C35)-1,COLUMNS($C$26:C35)-1)<>"",OFFSET(DE110_9!$C$26,ROWS($C$26:C35)-1,COLUMNS($C$26:C35)-1),"") -> 556+89.66, 146.29' Rt. | B21: =IF(OFFSET(DE110_9!$D$26,ROWS($D$26:D35)-1,COLUMNS($D$26:D35)-1)<>"",OFFSET(DE110_9!$D$26,ROWS($D$26:D35)-1,COLUMNS($D$26:D35)-1),"") -> 2'x2'x216' RCB | C21: =IF(OFFSET(DE110_9!$E$26,ROWS($E$26:E35)-1,COLUMNS($E$26:E35)-1)<>"",OFFSET(DE110_9!$E$26,ROWS($E$26:E35)-1,COLUMNS($E$26:E35)-1),"") -> 31.88888889 | D21: =IF(OFFSET(DE110_9!$F$26,ROWS($F$26:F35)-1,COLUMNS($F$26:F35)-1)<>"",OFFSET(DE110_9!$F$26,ROWS($F$26:F35)-1,COLUMNS($F$26:F35)-1),"") -> 0.1656826042 | E21: =IF(OFFSET(DE110_9!$G$26,ROWS($G$26:G35)-1,COLUMNS($G$26:G35)-1)<>"",OFFSET(DE110_9!$G$26,ROWS($G$26:G35)-1,COLUMNS($G$26:G35)-1),"") -> 8 | F21: =IF(OFFSET(DE110_9!$H$26,ROWS($H$26:H35)-1,COLUMNS($H$26:H35)-1)<>"",OFFSET(DE110_9!$H$26,ROWS($H$26:H35)-1,COLUMNS($H$26:H35)-1),"") -> 
A22: =IF(OFFSET(DE110_9!$C$26,ROWS($C$26:C36)-1,COLUMNS($C$26:C36)-1)<>"",OFFSET(DE110_9!$C$26,ROWS($C$26:C36)-1,COLUMNS($C$26:C36)-1),"") -> 558+77.37, 146.91' Rt. | B22: =IF(OFFSET(DE110_9!$D$26,ROWS($D$26:D36)-1,COLUMNS($D$26:D36)-1)<>"",OFFSET(DE110_9!$D$26,ROWS($D$26:D36)-1,COLUMNS($D$26:D36)-1),"") -> 24"x163' RCP | C22: =IF(OFFSET(DE110_9!$E$26,ROWS($E$26:E36)-1,COLUMNS($E$26:E36)-1)<>"",OFFSET(DE110_9!$E$26,ROWS($E$26:E36)-1,COLUMNS($E$26:E36)-1),"") -> 18.86592593 | D22: =IF(OFFSET(DE110_9!$F$26,ROWS($F$26:F36)-1,COLUMNS($F$26:F36)-1)<>"",OFFSET(DE110_9!$F$26,ROWS($F$26:F36)-1,COLUMNS($F$26:F36)-1),"") -> 0.1434075 | E22: =IF(OFFSET(DE110_9!$G$26,ROWS($G$26:G36)-1,COLUMNS($G$26:G36)-1)<>"",OFFSET(DE110_9!$G$26,ROWS($G$26:G36)-1,COLUMNS($G$26:G36)-1),"") -> 8 | F22: =IF(OFFSET(DE110_9!$H$26,ROWS($H$26:H36)-1,COLUMNS($H$26:H36)-1)<>"",OFFSET(DE110_9!$H$26,ROWS($H$26:H36)-1,COLUMNS($H$26:H36)-1),"") -> 
A23: =IF(OFFSET(DE110_9!$C$26,ROWS($C$26:C37)-1,COLUMNS($C$26:C37)-1)<>"",OFFSET(DE110_9!$C$26,ROWS($C$26:C37)-1,COLUMNS($C$26:C37)-1),"") -> 566+82.25, 149.58' Rt. | B23: =IF(OFFSET(DE110_9!$D$26,ROWS($D$26:D37)-1,COLUMNS($D$26:D37)-1)<>"",OFFSET(DE110_9!$D$26,ROWS($D$26:D37)-1,COLUMNS($D$26:D37)-1),"") -> 5'x5'x170' RCB | C23: =IF(OFFSET(DE110_9!$E$26,ROWS($E$26:E37)-1,COLUMNS($E$26:E37)-1)<>"",OFFSET(DE110_9!$E$26,ROWS($E$26:E37)-1,COLUMNS($E$26:E37)-1),"") -> 157.2407407 | D23: =IF(OFFSET(DE110_9!$F$26,ROWS($F$26:F37)-1,COLUMNS($F$26:F37)-1)<>"",OFFSET(DE110_9!$F$26,ROWS($F$26:F37)-1,COLUMNS($F$26:F37)-1),"") -> 0.2430701563 | E23: =IF(OFFSET(DE110_9!$G$26,ROWS($G$26:G37)-1,COLUMNS($G$26:G37)-1)<>"",OFFSET(DE110_9!$G$26,ROWS($G$26:G37)-1,COLUMNS($G$26:G37)-1),"") -> 14 | F23: =IF(OFFSET(DE110_9!$H$26,ROWS($H$26:H37)-1,COLUMNS($H$26:H37)-1)<>"",OFFSET(DE110_9!$H$26,ROWS($H$26:H37)-1,COLUMNS($H$26:H37)-1),"") -> 
A24: =IF(OFFSET(DE110_9!$C$26,ROWS($C$26:C38)-1,COLUMNS($C$26:C38)-1)<>"",OFFSET(DE110_9!$C$26,ROWS($C$26:C38)-1,COLUMNS($C$26:C38)-1),"") -> 577+31.18, 153.06' Rt. | B24: =IF(OFFSET(DE110_9!$D$26,ROWS($D$26:D38)-1,COLUMNS($D$26:D38)-1)<>"",OFFSET(DE110_9!$D$26,ROWS($D$26:D38)-1,COLUMNS($D$26:D38)-1),"") -> 6.25'x9.25'x271' Conc. Arch Culvert | C24: =IF(OFFSET(DE110_9!$E$26,ROWS($E$26:E38)-1,COLUMNS($E$26:E38)-1)<>"",OFFSET(DE110_9!$E$26,ROWS($E$26:E38)-1,COLUMNS($E$26:E38)-1),"") -> 463.3055556 | D24: =IF(OFFSET(DE110_9!$F$26,ROWS($F$26:F38)-1,COLUMNS($F$26:F38)-1)<>"",OFFSET(DE110_9!$F$26,ROWS($F$26:F38)-1,COLUMNS($F$26:F38)-1),"") -> 1.1371575 | E24: =IF(OFFSET(DE110_9!$G$26,ROWS($G$26:G38)-1,COLUMNS($G$26:G38)-1)<>"",OFFSET(DE110_9!$G$26,ROWS($G$26:G38)-1,COLUMNS($G$26:G38)-1),"") -> 22.5 | F24: =IF(OFFSET(DE110_9!$H$26,ROWS($H$26:H38)-1,COLUMNS($H$26:H38)-1)<>"",OFFSET(DE110_9!$H$26,ROWS($H$26:H38)-1,COLUMNS($H$26:H38)-1),"") -> 
A25: =IF(OFFSET(DE110_9!$C$26,ROWS($C$26:C39)-1,COLUMNS($C$26:C39)-1)<>"",OFFSET(DE110_9!$C$26,ROWS($C$26:C39)-1,COLUMNS($C$26:C39)-1),"") -> 593+45.94, 158.41' Rt. | B25: =IF(OFFSET(DE110_9!$D$26,ROWS($D$26:D39)-1,COLUMNS($D$26:D39)-1)<>"",OFFSET(DE110_9!$D$26,ROWS($D$26:D39)-1,COLUMNS($D$26:D39)-1),"") -> 3.7'x5.5'x320' Conc. Arch Culvert | C25: =IF(OFFSET(DE110_9!$E$26,ROWS($E$26:E39)-1,COLUMNS($E$26:E39)-1)<>"",OFFSET(DE110_9!$E$26,ROWS($E$26:E39)-1,COLUMNS($E$26:E39)-1),"") -> 192.4461111 | D25: =IF(OFFSET(DE110_9!$F$26,ROWS($F$26:F39)-1,COLUMNS($F$26:F39)-1)<>"",OFFSET(DE110_9!$F$26,ROWS($F$26:F39)-1,COLUMNS($F$26:F39)-1),"") -> 0.6046575 | E25: =IF(OFFSET(DE110_9!$G$26,ROWS($G$26:G39)-1,COLUMNS($G$26:G39)-1)<>"",OFFSET(DE110_9!$G$26,ROWS($G$26:G39)-1,COLUMNS($G$26:G39)-1),"") -> 15 | F25: =IF(OFFSET(DE110_9!$H$26,ROWS($H$26:H39)-1,COLUMNS($H$26:H39)-1)<>"",OFFSET(DE110_9!$H$26,ROWS($H$26:H39)-1,COLUMNS($H$26:H39)-1),"") -> 
A26: =IF(OFFSET(DE110_9!$C$26,ROWS($C$26:C40)-1,COLUMNS($C$26:C40)-1)<>"",OFFSET(DE110_9!$C$26,ROWS($C$26:C40)-1,COLUMNS($C$26:C40)-1),"") -> 612+43.88, 158.62' Rt. | B26: =IF(OFFSET(DE110_9!$D$26,ROWS($D$26:D40)-1,COLUMNS($D$26:D40)-1)<>"",OFFSET(DE110_9!$D$26,ROWS($D$26:D40)-1,COLUMNS($D$26:D40)-1),"") -> 4.75'x6'x308' Conc. Arch Culvert | C26: =IF(OFFSET(DE110_9!$E$26,ROWS($E$26:E40)-1,COLUMNS($E$26:E40)-1)<>"",OFFSET(DE110_9!$E$26,ROWS($E$26:E40)-1,COLUMNS($E$26:E40)-1),"") -> 259.4748148 | D26: =IF(OFFSET(DE110_9!$F$26,ROWS($F$26:F40)-1,COLUMNS($F$26:F40)-1)<>"",OFFSET(DE110_9!$F$26,ROWS($F$26:F40)-1,COLUMNS($F$26:F40)-1),"") -> 0.7984075 | E26: =IF(OFFSET(DE110_9!$G$26,ROWS($G$26:G40)-1,COLUMNS($G$26:G40)-1)<>"",OFFSET(DE110_9!$G$26,ROWS($G$26:G40)-1,COLUMNS($G$26:G40)-1),"") -> 16 | F26: =IF(OFFSET(DE110_9!$H$26,ROWS($H$26:H40)-1,COLUMNS($H$26:H40)-1)<>"",OFFSET(DE110_9!$H$26,ROWS($H$26:H40)-1,COLUMNS($H$26:H40)-1),"") -> 
A27: =IF(OFFSET(DE110_9!$C$26,ROWS($C$26:C41)-1,COLUMNS($C$26:C41)-1)<>"",OFFSET(DE110_9!$C$26,ROWS($C$26:C41)-1,COLUMNS($C$26:C41)-1),"") -> 626+42.71, 155.01' Rt. | B27: =IF(OFFSET(DE110_9!$D$26,ROWS($D$26:D41)-1,COLUMNS($D$26:D41)-1)<>"",OFFSET(DE110_9!$D$26,ROWS($D$26:D41)-1,COLUMNS($D$26:D41)-1),"") -> 3.7'x5.5'x281' Conc. Arch Culvert | C27: =IF(OFFSET(DE110_9!$E$26,ROWS($E$26:E41)-1,COLUMNS($E$26:E41)-1)<>"",OFFSET(DE110_9!$E$26,ROWS($E$26:E41)-1,COLUMNS($E$26:E41)-1),"") -> 168.945 | D27: =IF(OFFSET(DE110_9!$F$26,ROWS($F$26:F41)-1,COLUMNS($F$26:F41)-1)<>"",OFFSET(DE110_9!$F$26,ROWS($F$26:F41)-1,COLUMNS($F$26:F41)-1),"") -> 0.6046575 | E27: =IF(OFFSET(DE110_9!$G$26,ROWS($G$26:G41)-1,COLUMNS($G$26:G41)-1)<>"",OFFSET(DE110_9!$G$26,ROWS($G$26:G41)-1,COLUMNS($G$26:G41)-1),"") -> 15 | F27: =IF(OFFSET(DE110_9!$H$26,ROWS($H$26:H41)-1,COLUMNS($H$26:H41)-1)<>"",OFFSET(DE110_9!$H$26,ROWS($H$26:H41)-1,COLUMNS($H$26:H41)-1),"") -> 
A28: =IF(OFFSET(DE110_9!$C$26,ROWS($C$26:C42)-1,COLUMNS($C$26:C42)-1)<>"",OFFSET(DE110_9!$C$26,ROWS($C$26:C42)-1,COLUMNS($C$26:C42)-1),"") -> 654+57.52, 134.34' Rt. | B28: =IF(OFFSET(DE110_9!$D$26,ROWS($D$26:D42)-1,COLUMNS($D$26:D42)-1)<>"",OFFSET(DE110_9!$D$26,ROWS($D$26:D42)-1,COLUMNS($D$26:D42)-1),"") -> 4.75'x6'x196' Conc. Arch Culvert | C28: =IF(OFFSET(DE110_9!$E$26,ROWS($E$26:E42)-1,COLUMNS($E$26:E42)-1)<>"",OFFSET(DE110_9!$E$26,ROWS($E$26:E42)-1,COLUMNS($E$26:E42)-1),"") -> 257.2088889 | D28: =IF(OFFSET(DE110_9!$F$26,ROWS($F$26:F42)-1,COLUMNS($F$26:F42)-1)<>"",OFFSET(DE110_9!$F$26,ROWS($F$26:F42)-1,COLUMNS($F$26:F42)-1),"") -> 0.2688660069 | E28: =IF(OFFSET(DE110_9!$G$26,ROWS($G$26:G42)-1,COLUMNS($G$26:G42)-1)<>"",OFFSET(DE110_9!$G$26,ROWS($G$26:G42)-1,COLUMNS($G$26:G42)-1),"") -> 16 | F28: =IF(OFFSET(DE110_9!$H$26,ROWS($H$26:H42)-1,COLUMNS($H$26:H42)-1)<>"",OFFSET(DE110_9!$H$26,ROWS($H$26:H42)-1,COLUMNS($H$26:H42)-1),"") -> with 5'x6'x66' RCB Extension and 24"x40' CMP Tee
A29: =IF(OFFSET(DE110_9!$C$26,ROWS($C$26:C43)-1,COLUMNS($C$26:C43)-1)<>"",OFFSET(DE110_9!$C$26,ROWS($C$26:C43)-1,COLUMNS($C$26:C43)-1),"") -> 661+02.08, 130.50' Rt. | B29: =IF(OFFSET(DE110_9!$D$26,ROWS($D$26:D43)-1,COLUMNS($D$26:D43)-1)<>"",OFFSET(DE110_9!$D$26,ROWS($D$26:D43)-1,COLUMNS($D$26:D43)-1),"") -> 2'x2'x130' RCB | C29: =IF(OFFSET(DE110_9!$E$26,ROWS($E$26:E43)-1,COLUMNS($E$26:E43)-1)<>"",OFFSET(DE110_9!$E$26,ROWS($E$26:E43)-1,COLUMNS($E$26:E43)-1),"") -> 19.14814815 | D29: =IF(OFFSET(DE110_9!$F$26,ROWS($F$26:F43)-1,COLUMNS($F$26:F43)-1)<>"",OFFSET(DE110_9!$F$26,ROWS($F$26:F43)-1,COLUMNS($F$26:F43)-1),"") -> 0.1656826042 | E29: =IF(OFFSET(DE110_9!$G$26,ROWS($G$26:G43)-1,COLUMNS($G$26:G43)-1)<>"",OFFSET(DE110_9!$G$26,ROWS($G$26:G43)-1,COLUMNS($G$26:G43)-1),"") -> 8 | F29: =IF(OFFSET(DE110_9!$H$26,ROWS($H$26:H43)-1,COLUMNS($H$26:H43)-1)<>"",OFFSET(DE110_9!$H$26,ROWS($H$26:H43)-1,COLUMNS($H$26:H43)-1),"") -> 
A30: =IF(OFFSET(DE110_9!$C$26,ROWS($C$26:C44)-1,COLUMNS($C$26:C44)-1)<>"",OFFSET(DE110_9!$C$26,ROWS($C$26:C44)-1,COLUMNS($C$26:C44)-1),"") -> 664+83.45, 115.98' Rt. | B30: =IF(OFFSET(DE110_9!$D$26,ROWS($D$26:D44)-1,COLUMNS($D$26:D44)-1)<>"",OFFSET(DE110_9!$D$26,ROWS($D$26:D44)-1,COLUMNS($D$26:D44)-1),"") -> 2'x2'x105' RCB | C30: =IF(OFFSET(DE110_9!$E$26,ROWS($E$26:E44)-1,COLUMNS($E$26:E44)-1)<>"",OFFSET(DE110_9!$E$26,ROWS($E$26:E44)-1,COLUMNS($E$26:E44)-1),"") -> 18.71777778 | D30: =IF(OFFSET(DE110_9!$F$26,ROWS($F$26:F44)-1,COLUMNS($F$26:F44)-1)<>"",OFFSET(DE110_9!$F$26,ROWS($F$26:F44)-1,COLUMNS($F$26:F44)-1),"") -> 0.1656826042 | E30: =IF(OFFSET(DE110_9!$G$26,ROWS($G$26:G44)-1,COLUMNS($G$26:G44)-1)<>"",OFFSET(DE110_9!$G$26,ROWS($G$26:G44)-1,COLUMNS($G$26:G44)-1),"") -> 8 | F30: =IF(OFFSET(DE110_9!$H$26,ROWS($H$26:H44)-1,COLUMNS($H$26:H44)-1)<>"",OFFSET(DE110_9!$H$26,ROWS($H$26:H44)-1,COLUMNS($H$26:H44)-1),"") -> with 30"x18' RCP Extension
A31: =IF(OFFSET(DE110_9!$C$26,ROWS($C$26:C45)-1,COLUMNS($C$26:C45)-1)<>"",OFFSET(DE110_9!$C$26,ROWS($C$26:C45)-1,COLUMNS($C$26:C45)-1),"") -> 668+87.97, 90.61' Rt. | B31: =IF(OFFSET(DE110_9!$D$26,ROWS($D$26:D45)-1,COLUMNS($D$26:D45)-1)<>"",OFFSET(DE110_9!$D$26,ROWS($D$26:D45)-1,COLUMNS($D$26:D45)-1),"") -> 3'x3'x131' RCB | C31: =IF(OFFSET(DE110_9!$E$26,ROWS($E$26:E45)-1,COLUMNS($E$26:E45)-1)<>"",OFFSET(DE110_9!$E$26,ROWS($E$26:E45)-1,COLUMNS($E$26:E45)-1),"") -> 64.5637037 | D31: =IF(OFFSET(DE110_9!$F$26,ROWS($F$26:F45)-1,COLUMNS($F$26:F45)-1)<>"",OFFSET(DE110_9!$F$26,ROWS($F$26:F45)-1,COLUMNS($F$26:F45)-1),"") -> 0.2009075 | E31: =IF(OFFSET(DE110_9!$G$26,ROWS($G$26:G45)-1,COLUMNS($G$26:G45)-1)<>"",OFFSET(DE110_9!$G$26,ROWS($G$26:G45)-1,COLUMNS($G$26:G45)-1),"") -> 11 | F31: =IF(OFFSET(DE110_9!$H$26,ROWS($H$26:H45)-1,COLUMNS($H$26:H45)-1)<>"",OFFSET(DE110_9!$H$26,ROWS($H$26:H45)-1,COLUMNS($H$26:H45)-1),"") -> with 42"x59' RCP Extension
A32: =IF(OFFSET(DE110_9!$C$26,ROWS($C$26:C46)-1,COLUMNS($C$26:C46)-1)<>"",OFFSET(DE110_9!$C$26,ROWS($C$26:C46)-1,COLUMNS($C$26:C46)-1),"") -> 671+20.30, 75.69' Rt. | B32: =IF(OFFSET(DE110_9!$D$26,ROWS($D$26:D46)-1,COLUMNS($D$26:D46)-1)<>"",OFFSET(DE110_9!$D$26,ROWS($D$26:D46)-1,COLUMNS($D$26:D46)-1),"") -> 2'x3'x104' RCB | C32: =IF(OFFSET(DE110_9!$E$26,ROWS($E$26:E46)-1,COLUMNS($E$26:E46)-1)<>"",OFFSET(DE110_9!$E$26,ROWS($E$26:E46)-1,COLUMNS($E$26:E46)-1),"") -> 41.58703704 | D32: =IF(OFFSET(DE110_9!$F$26,ROWS($F$26:F46)-1,COLUMNS($F$26:F46)-1)<>"",OFFSET(DE110_9!$F$26,ROWS($F$26:F46)-1,COLUMNS($F$26:F46)-1),"") -> 0.1834075 | E32: =IF(OFFSET(DE110_9!$G$26,ROWS($G$26:G46)-1,COLUMNS($G$26:G46)-1)<>"",OFFSET(DE110_9!$G$26,ROWS($G$26:G46)-1,COLUMNS($G$26:G46)-1),"") -> 10 | F32: =IF(OFFSET(DE110_9!$H$26,ROWS($H$26:H46)-1,COLUMNS($H$26:H46)-1)<>"",OFFSET(DE110_9!$H$26,ROWS($H$26:H46)-1,COLUMNS($H$26:H46)-1),"") -> with 36"x71' RCP Extensions
A33: =IF(OFFSET(DE110_9!$C$26,ROWS($C$26:C47)-1,COLUMNS($C$26:C47)-1)<>"",OFFSET(DE110_9!$C$26,ROWS($C$26:C47)-1,COLUMNS($C$26:C47)-1),"") ->  | B33: =IF(OFFSET(DE110_9!$D$26,ROWS($D$26:D47)-1,COLUMNS($D$26:D47)-1)<>"",OFFSET(DE110_9!$D$26,ROWS($D$26:D47)-1,COLUMNS($D$26:D47)-1),"") ->  | C33: =IF(OFFSET(DE110_9!$E$26,ROWS($E$26:E47)-1,COLUMNS($E$26:E47)-1)<>"",OFFSET(DE110_9!$E$26,ROWS($E$26:E47)-1,COLUMNS($E$26:E47)-1),"") ->  | D33: =IF(OFFSET(DE110_9!$F$26,ROWS($F$26:F47)-1,COLUMNS($F$26:F47)-1)<>"",OFFSET(DE110_9!$F$26,ROWS($F$26:F47)-1,COLUMNS($F$26:F47)-1),"") ->  | E33: =IF(OFFSET(DE110_9!$G$26,ROWS($G$26:G47)-1,COLUMNS($G$26:G47)-1)<>"",OFFSET(DE110_9!$G$26,ROWS($G$26:G47)-1,COLUMNS($G$26:G47)-1),"") ->  | F33: =IF(OFFSET(DE110_9!$H$26,ROWS($H$26:H47)-1,COLUMNS($H$26:H47)-1)<>"",OFFSET(DE110_9!$H$26,ROWS($H$26:H47)-1,COLUMNS($H$26:H47)-1),"") -> 
A34: =IF(OFFSET(DE110_9!$C$26,ROWS($C$26:C48)-1,COLUMNS($C$26:C48)-1)<>"",OFFSET(DE110_9!$C$26,ROWS($C$26:C48)-1,COLUMNS($C$26:C48)-1),"") -> TOTALS: | B34: =IF(OFFSET(DE110_9!$D$26,ROWS($D$26:D48)-1,COLUMNS($D$26:D48)-1)<>"",OFFSET(DE110_9!$D$26,ROWS($D$26:D48)-1,COLUMNS($D$26:D48)-1),"") ->  | C34: =IF(OFFSET(DE110_9!$E$26,ROWS($E$26:E48)-1,COLUMNS($E$26:E48)-1)<>"",OFFSET(DE110_9!$E$26,ROWS($E$26:E48)-1,COLUMNS($E$26:E48)-1),"") -> 3257.475926 | D34: =IF(OFFSET(DE110_9!$F$26,ROWS($F$26:F48)-1,COLUMNS($F$26:F48)-1)<>"",OFFSET(DE110_9!$F$26,ROWS($F$26:F48)-1,COLUMNS($F$26:F48)-1),"") -> 7.971821615 | E34: =IF(OFFSET(DE110_9!$G$26,ROWS($G$26:G48)-1,COLUMNS($G$26:G48)-1)<>"",OFFSET(DE110_9!$G$26,ROWS($G$26:G48)-1,COLUMNS($G$26:G48)-1),"") -> 271.5 | F34: =IF(OFFSET(DE110_9!$H$26,ROWS($H$26:H48)-1,COLUMNS($H$26:H48)-1)<>"",OFFSET(DE110_9!$H$26,ROWS($H$26:H48)-1,COLUMNS($H$26:H48)-1),"") -> 
A35: =IF(OFFSET(DE110_9!$C$26,ROWS($C$26:C49)-1,COLUMNS($C$26:C49)-1)<>"",OFFSET(DE110_9!$C$26,ROWS($C$26:C49)-1,COLUMNS($C$26:C49)-1),"") ->  | B35: =IF(OFFSET(DE110_9!$D$26,ROWS($D$26:D49)-1,COLUMNS($D$26:D49)-1)<>"",OFFSET(DE110_9!$D$26,ROWS($D$26:D49)-1,COLUMNS($D$26:D49)-1),"") ->  | C35: =IF(OFFSET(DE110_9!$E$26,ROWS($E$26:E49)-1,COLUMNS($E$26:E49)-1)<>"",OFFSET(DE110_9!$E$26,ROWS($E$26:E49)-1,COLUMNS($E$26:E49)-1),"") ->  | D35: =IF(OFFSET(DE110_9!$F$26,ROWS($F$26:F49)-1,COLUMNS($F$26:F49)-1)<>"",OFFSET(DE110_9!$F$26,ROWS($F$26:F49)-1,COLUMNS($F$26:F49)-1),"") ->  | E35: =IF(OFFSET(DE110_9!$G$26,ROWS($G$26:G49)-1,COLUMNS($G$26:G49)-1)<>"",OFFSET(DE110_9!$G$26,ROWS($G$26:G49)-1,COLUMNS($G$26:G49)-1),"") ->  | F35: =IF(OFFSET(DE110_9!$H$26,ROWS($H$26:H49)-1,COLUMNS($H$26:H49)-1)<>"",OFFSET(DE110_9!$H$26,ROWS($H$26:H49)-1,COLUMNS($H$26:H49)-1),"") -> 
A36: =IF(OFFSET(DE110_9!$C$26,ROWS($C$26:C50)-1,COLUMNS($C$26:C50)-1)<>"",OFFSET(DE110_9!$C$26,ROWS($C$26:C50)-1,COLUMNS($C$26:C50)-1),"") ->  | B36: =IF(OFFSET(DE110_9!$D$26,ROWS($D$26:D50)-1,COLUMNS($D$26:D50)-1)<>"",OFFSET(DE110_9!$D$26,ROWS($D$26:D50)-1,COLUMNS($D$26:D50)-1),"") ->  | C36: =IF(OFFSET(DE110_9!$E$26,ROWS($E$26:E50)-1,COLUMNS($E$26:E50)-1)<>"",OFFSET(DE110_9!$E$26,ROWS($E$26:E50)-1,COLUMNS($E$26:E50)-1),"") ->  | D36: =IF(OFFSET(DE110_9!$F$26,ROWS($F$26:F50)-1,COLUMNS($F$26:F50)-1)<>"",OFFSET(DE110_9!$F$26,ROWS($F$26:F50)-1,COLUMNS($F$26:F50)-1),"") ->  | E36: =IF(OFFSET(DE110_9!$G$26,ROWS($G$26:G50)-1,COLUMNS($G$26:G50)-1)<>"",OFFSET(DE110_9!$G$26,ROWS($G$26:G50)-1,COLUMNS($G$26:G50)-1),"") ->  | F36: =IF(OFFSET(DE110_9!$H$26,ROWS($H$26:H50)-1,COLUMNS($H$26:H50)-1)<>"",OFFSET(DE110_9!$H$26,ROWS($H$26:H50)-1,COLUMNS($H$26:H50)-1),"") -> 

Sheet Calculations
B2: =DE110_9!C21 -> Location Station | C2: Pipe | H2: End Area (SF) | K2: Volume (CF) | N2: Length (LF) | P2: Extension | V2: End Area | Y2: Volume (CF) | AB2: Length (LF) | AD2: Tee | AG2: End Area | AH2: Volume (CF) | AJ2: Notes
C3: Width (Span) | D3: Height (Rise) | E3: Diameter | F3: Length | G3: Type | H3: Total Flowable Mortar | I3: Flowable Mortar | J3: Granular Backfill | K3: Total Flowable Mortar | L3: Flowable Mortar | M3: Granular Backfill | N3: Subdrain | P3: Width | Q3: Height | R3: Diameter | S3: Length | T3: Type | U3: Side | V3: Total Flowable Mortar | W3: Flowable Mortar | X3: Granular Backfill | Y3: Total Flowable Mortar | Z3: Flowable Mortar | AA3: Granular Backfill | AB3: Subdrain | AD3: Diameter | AE3: Length | AF3: Type | AG3: Total Flowable Mortar | AH3: Total Flowable Mortar
B4: =DE110_9!C26 -> 453+84.52, 162.69' Rt. | C4: 3.7 | D4: 5.5 | F4: 178 | G4: Concrete Arch Culvert | H4: 16.27 | K4: =F4*H4 -> 2896.06 | P4: 4 | Q4: 5 | S4: 249 | T4: RCB Extensions | U4: Both | V4: =P4*Q4 -> 20 | W4: =V4-(1*1*0.5) -> 19.5 | X4: =(1*1*0.5)-(3.14159*((4/12)/2)^2) -> 0.4127336111 | Y4: =(S4-(Q4+2)-2)*V4 -> 4800 | Z4: =((Q4+2)+2)*W4 -> 175.5 | AA4: =((Q4+2)*X4)+(2*(X4+0.08726)) -> 3.8891225 | AB4: =(Q4+2)*2 -> 14 | AJ4: Remove Flume
B5: =DE110_9!C27 -> 459+60.87, 168.59' Rt. | C5: 3.7 | D5: 5.5 | F5: 147 | G5: Concrete Arch Culvert | H5: 16.27 | K5: =F5*H5 -> 2391.69 | P5: 4 | Q5: 5 | S5: 117 | T5: RCB Extensions | U5: Both | V5: =P5*Q5 -> 20 | W5: =V5-(1*1*0.5) -> 19.5 | X5: =(1*1*0.5)-(3.14159*((4/12)/2)^2) -> 0.4127336111 | Y5: =(S5-(Q5+2)-2)*V5 -> 2160 | Z5: =((Q5+2)+2)*W5 -> 175.5 | AA5: =((Q5+2)*X5)+(2*(X5+0.08726)) -> 3.8891225 | AB5: =(Q5+2)*2 -> 14 | AD5: 2 | AE5: 156 | AF5: CMP | AG5: 12.57 | AH5: =AE5*AG5 -> 1960.92 | AJ5: Remove Flume
B6: =DE110_9!C28 -> 475+31.53, 157.92' Rt. | C6: 3 | D6: 3 | F6: 241 | G6: RCB | H6: =C6*D6 -> 9 | I6: =H6-(1*1*0.5) -> 8.5 | J6: =(1*1*0.5)-(3.14159*((4/12)/2)^2) -> 0.4127336111 | K6: =(F6-(D6+2)-2)*H6 -> 2106 | L6: =((D6+2)+2)*I6 -> 59.5 | M6: =((D6+2)*J6)+(2*(J6+0.08726)) -> 3.063655278 | N6: =(D6+2)*2 -> 10
B7: =DE110_9!C29 -> 493+95.50, 152.76' Rt. | C7: 5 | D7: 7 | F7: 280 | G7: RCB | H7: =C7*D7 -> 35 | I7: =H7-(1*1*0.5) -> 34.5 | J7: =(1*1*0.5)-(3.14159*((4/12)/2)^2) -> 0.4127336111 | K7: =(F7-(D7+2)-2)*H7 -> 9415 | L7: =((D7+2)+2)*I7 -> 379.5 | M7: =((D7+2)*J7)+(2*(J7+0.08726)) -> 4.714589722 | N7: =(D7+2)*2 -> 18
B8: =DE110_9!C30 -> 497+75.15, 151.70' Rt. | C8: 2 | D8: 2 | F8: 145 | G8: RCB | H8: =C8*D8 -> 4 | I8: =H8-(1*1*0.5) -> 3.5 | J8: 0.4127336111 | K8: 556 | L8: 21 | M8: 2.650921667 | N8: 8
B9: =DE110_9!C31 -> 511+30.61, 147.95' Rt. | C9: 4.75 | D9: 6 | F9: 287 | G9: Concrete Arch Culvert | H9: 22.79 | I9: 21.44 | J9: 1.26 | K9: 6312.83 | L9: =((D9+2)+2)*I9 -> 214.4 | M9: =((D9+2)*J9)+(2*(J9+0.08726)) -> 12.77452 | N9: 16
B10: =DE110_9!C32 -> 531+45.64, 134.84' Rt. | C10: 4 | D10: 4 | F10: 189 | G10: RCB | H10: =C10*D10 -> 16 | I10: =H10-(1*1*0.5) -> 15.5 | J10: 0.4127336111 | K10: 2896 | L10: =((D10+2)+2)*I10 -> 124 | M10: 3.476388889 | N10: 12
B11: =DE110_9!C33 -> 538+86.05, 138.76' Rt. | C11: 5.5 | D11: 8 | F11: 141 | G11: Concrete Arch Culvert | H11: 35.19 | I11: 33.82 | J11: 1.28 | K11: 4539.51 | L11: =((D11+2)+2)*I11 -> 405.84 | M11: 15.53452 | N11: 20
B12: =DE110_9!C34 -> 554+57.18, 145.52' Rt. | C12: 2 | D12: 2 | F12: 161 | G12: RCB | H12: =C12*D12 -> 4 | I12: =H12-(1*1*0.5) -> 3.5 | J12: 0.4127336111 | K12: 620 | L12: 21 | M12: 2.650921667 | N12: 8 | AJ12: Remove Flume
B13: =DE110_9!C35 -> 556+89.66, 146.29' Rt. | C13: 2 | D13: 2 | F13: 216 | G13: RCB | H13: =C13*D13 -> 4 | I13: =H13-(1*1*0.5) -> 3.5 | J13: 0.4127336111 | K13: 840 | L13: 21 | M13: 2.650921667 | N13: 8
B14: =DE110_9!C36 -> 558+77.37, 146.91' Rt. | E14: 2 | F14: 163 | G14: RCP | H14: 3.14 | I14: 2.53 | J14: 0.53 | K14: 499.26 | L14: 10.12 | M14: 2.29452 | N14: =(E14+2)*2 -> 8
B15: =DE110_9!C37 -> 566+82.25, 149.58' Rt. | C15: 5 | D15: 5 | F15: 170 | G15: RCB | H15: =C15*D15 -> 25 | I15: =H15-(1*1*0.5) -> 24.5 | J15: 0.4127336111 | K15: 4025 | L15: 220.5 | M15: 3.8891225 | N15: 14
B16: =DE110_9!C38 -> 577+31.18, 153.06' Rt. | C16: 6.25 | D16: 9.25 | F16: 271 | G16: Concrete Arch Culvert | H16: 46.23 | I16: 44.79 | J16: 1.36 | K16: 11915.7825 | L16: 593.4675 | M16: 18.19452 | N16: 22.5
B17: =DE110_9!C39 -> 593+45.94, 158.41' Rt. | C17: 3.7 | D17: 5.5 | F17: 320 | G17: Concrete Arch Culvert | H17: 16.27 | I17: 15.18 | J17: 1 | K17: 5051.835 | L17: 144.21 | M17: 9.67452 | N17: 15
B18: =DE110_9!C40 -> 612+43.88, 158.62' Rt. | C18: 4.75 | D18: 6 | F18: 308 | G18: Concrete Arch Culvert | H18: 22.79 | I18: 21.44 | J18: 1.26 | K18: 6791.42 | L18: 214.4 | M18: 12.77452 | N18: 16
B19: =DE110_9!C41 -> 626+42.71, 155.01' Rt. | C19: 3.7 | D19: 5.5 | F19: 281 | G19: Concrete Arch Culvert | H19: 16.27 | I19: 15.18 | J19: 1 | K19: 4417.305 | L19: 144.21 | M19: 9.67452 | N19: 15
B20: =DE110_9!C42 -> 654+57.52, 134.34' Rt. | C20: 4.75 | D20: 6 | F20: 196 | G20: Concrete Arch Culvert | H20: 22.79 | K20: =F20*H20 -> 4466.84 | P20: 5 | Q20: 6 | S20: 66 | T20: RCB Extension | U20: Outlet | V20: 30 | W20: 29.5 | X20: 0.4127336111 | Y20: 1680 | Z20: 295 | AA20: 4.301856111 | AB20: =(Q20+2)*2 -> 16 | AD20: 2 | AE20: 40 | AF20: CMP | AG20: 12.57 | AH20: =AE20*AG20 -> 502.8
B21: =DE110_9!C43 -> 661+02.08, 130.50' Rt. | C21: 2 | D21: 2 | F21: 130 | G21: RCB | H21: =C21*D21 -> 4 | I21: =H21-(1*1*0.5) -> 3.5 | J21: =(1*1*0.5)-(3.14159*((4/12)/2)^2) -> 0.4127336111 | K21: 496 | L21: 21 | M21: 2.650921667 | N21: 8
B22: =DE110_9!C44 -> 664+83.45, 115.98' Rt. | C22: 2 | D22: 2 | F22: 105 | G22: RCB | H22: =C22*D22 -> 4 | I22: =H22-(1*1*0.5) -> 3.5 | J22: 0.4127336111 | K22: 396 | L22: 21 | M22: 2.650921667 | N22: 8 | R22: 2.5 | S22: 18 | T22: RCP Extension | U22: Inlet | V22: 4.91 | Y22: =S22*V22 -> 88.38
B23: =DE110_9!C45 -> 668+87.97, 90.61' Rt. | C23: 3 | D23: 3 | F23: 131 | G23: RCB | H23: =C23*D23 -> 9 | K23: =F23*H23 -> 1179 | R23: 3.5 | S23: 59 | T23: RCP Extension | U23: Outlet | V23: 9.62 | W23: 8.78 | X23: 0.76 | Y23: 529.1 | Z23: 35.12 | AA23: 3.21452 | AB23: =(R23+2)*2 -> 11
B24: =DE110_9!C46 -> 671+20.30, 75.69' Rt. | C24: 2 | D24: 3 | F24: 104 | G24: RCB | H24: =C24*D24 -> 6 | K24: =F24*H24 -> 624 | R24: 3 | S24: 71 | T24: RCP Extension | U24: Both | V24: 7.07 | W24: 6.29 | X24: 0.69 | Y24: 473.69 | Z24: 25.16 | AA24: 2.93452 | AB24: =(R24+2)*2 -> 10
B26: TOTALS: | K26: =SUM(K4:K24) -> 72435.5325 | L26: =SUM(L4:L24) -> 2615.1475 | M26: 109.3200047 | N26: 206.5 | Y26: =SUM(Y4:Y24) -> 9731.17 | Z26: =SUM(Z4:Z24) -> 706.28 | AA26: 18.22914111 | AB26: 65 | AH26: =SUM(AH4:AH24) -> 2463.72

Sheet PrintSheetTemplate (hidden)
B94: FILE NO. | I94: =IF(ProjectInformation!$B$11<>"",ProjectInformation!$B$11,"") ->  | P94: =UPPER(ProjectInformation!$B$8) -> ENGLISH | W94: DESIGN TEAM | AF94: =IF(AND(ProjectInformation!$B$3<>"",ProjectInformation!$B$4<>"",ProjectInformation!$B$5<>""),ProjectInformation!$B$3&"\"&ProjectInformation!$B$4&"\"&ProjectInformation!$B$5,IF(AND(ProjectInformation!$B$3<>"",ProjectInformation!$B$4<>""),ProjectInformation!$B$3&"\"&ProjectInformation!$B$4,IF(ProjectInformation!$B$3<>"",ProjectInformation!$B$3,""))) -> Flattery\Johnson | BN94: =IF(ProjectInformation!$B$6<>"",ProjectInformation!$B$6,"") -> TAMA | CX94: COUNTY | DD94: PROJECT NUMBER | DP94: =IF(ProjectInformation!$B$7<>"",ProjectInformation!$B$7,"") -> NHSX-030-6(189)--3H-86 | ET94: SHEET NUMBER | FJ94: =IF(FP94<>"","REVISED","") ->  | FP94: =IF(ProjectInformation!$B$9<>"",ProjectInformation!$B$9,"") -> 

Sheet Note1 (hidden)
A1: SEE V SHEETS FOR ADDITIONAL BID ITEMS AND QUANTITIES

Sheet BridgeBlock (hidden)
A1: 2
C3: Design No. | J3: =IF(#REF!<>"",#REF!,"") -> 
C4: File No. | I4: =IF(#REF!<>"",#REF!,"") -> 

Sheet Index (hidden)
A1: 100-0A | B1: 1997-10-28 | C1: 4.5.6 | D1: ADAIR | F1: Live English File Path | G1: W:\Highway\Design\RoadDesignDetails\ExcelTabs\ | I1: Brian R. Smith | J1: bsmith2 | K1: Methods | L1: ROADWAY DESIGN | N1: 110_9(1) | O1: ='110_9'!$A$1:$F$36 | Q1: A_DE111Series.xlsm
A2: 100-1A | B2: 1997-07-15 | C2: 10/01/15 | D2: ADAMS | F2: Live Metric File Path | G2: W:\Highway\Design\RoadDesignDetails\ExcelTabs\MetricTabs\ | I2: Khyle B. Clute | J2: kclute | K2: Methods | L2: ROADWAY DESIGN | Q2: C_DE100Series.xlsm
A3: 100-1C | B3: 2012-04-17 | C3: C | D3: ALLAMAKEE | F3: Index File Path | G3: W:\Highway\Design\RoadDesignDetails\PDFsandWebFiles\Indexes\ | I3: Thomas M. Hamski | J3: thamski | K3: Methods | L3: ROADWAY DESIGN | Q3: C_DE102Series.xlsm
A4: 100-1D | B4: 2005-10-18 | D4: APPANOOSE | F4: Index File Name | G4: TNT_EnglishIndexes.xlsx | I4: Wesley L. Mayberry | J4: wmayber | K4: Methods | L4: ROADWAY DESIGN | Q4: C_DE103Series.xlsm
A5: 100-4A | B5: 2002-10-29 | D5: AUDUBON | F5: Last Revision English File Path | G5: W:\Highway\Design\RoadDesignDetails\Old_Details\ExcelTabs\ | I5: John M. Narigon | J5: jnarigo | K5: Methods | L5: ROADWAY DESIGN | Q5: C_DE104Series.xlsm
A6: 100-7 | B6: 2012-10-16 | D6: BENTON | F6: Last Revision Metric File Path | G6: W:\Highway\Design\RoadDesignDetails\Old_Details\ExcelTabs\MetricTabs\ | I6: Christopher Poole | J6: cpoole | K6: Methods | L6: ROADWAY DESIGN | Q6: C_DE105Series.xlsm
A7: 100-10 | B7: 2011-10-18 | D7: BLACK HAWK | F7: Seed Path | G7: W:\Highway\Design\CADD\SpreadSheets\ExcelTabulations.xltm | I7: Daniel J. Harness | J7: dharnes | K7: Methods | L7: ROADWAY DESIGN | Q7: C_DE106Series.xlsm
A8: 100-11 | B8: 2008-08-01 | D8: BOONE | F8: VersionCheck Path | G8: W:\Highway\Design\CADD\SpreadSheets\ExcelTabulations.xlsm | I8: Jason M. Holst | J8: jholst | K8: Road1 | L8: ROADWAY DESIGN | Q8: C_DE107Series.xlsm
A9: 100-12 | B9: 2008-08-01 | D9: BREMER | F9: Standard Road Plan Path | G9: W:\Highway\Design\StandardRoadPlans\PDFsAndWebFiles\Indexes\SRP_EnglishIndex.xls | I9: Jason R. Strum | J9: jstrum | K9: Road1 | L9: ROADWAY DESIGN | Q9: C_DE108Series.xlsm
A10: 100-12A | B10: 2008-08-01 | D10: BUCHANAN | F10: Last Revision Standard Road Plan Path | G10: W:\Highway\Design\StandardRoadPlans\PDFsAndWebFiles\Old_Indexes\SRP_EnglishIndex.xls | I10: Robert A. Schoenrock | J10: rschoen | K10: Road1 | L10: ROADWAY DESIGN | Q10: C_DE110Series.xlsm
A11: 100-13 | B11: 2010-04-20 | D11: BUENA VISTA | F11: AddIn Path | G11: W:\Highway\Design\CADD\SpreadSheets\ExcelTabulations.xlam | I11: Stacy M. Ryan | J11: sryan | K11: Road1 | L11: ROADWAY DESIGN | Q11: C_DE111Series.xlsm
A12: 100-14 | B12: 2010-04-20 | D12: BUTLER | F12: Old Files Path | G12: W:\Highway\Design\RoadDesignDetails\Old_Details\ExcelTabs\ | I12: Nathan A. Thede | J12: nthede | K12: Road1 | L12: ROADWAY DESIGN | Q12: C_DE112Series.xlsm
A13: 100-15 | B13: 2010-04-20 | D13: CALHOUN | I13: Yanxiao Jia | J13: yjia | K13: Road2 | L13: ROADWAY DESIGN | Q13: C_DE113Series.xlsm
A14: 100-16 | B14: 2010-10-19 | D14: CARROLL | I14: Ryan R. Miller | J14: rmille3 | K14: Road2 | L14: ROADWAY DESIGN | Q14: C_DE190Series.xlsm
A15: 100-17 | B15: 2010-04-20 | D15: CASS | I15: Dustin T. Skogerboe | J15: dskoge2 | K15: Road2 | L15: ROADWAY DESIGN | Q15: C_DE192Series.xlsm
A16: 100-18 | B16: 2010-04-20 | D16: CEDAR | I16: Dung T. Ta | J16: dta | K16: Road2 | L16: ROADWAY DESIGN | Q16: C_DE231Series.xlsm
A17: 100-19 | B17: 2012-10-16 | D17: CERRO GORDO | I17: Allison L. P. Smyth | J17: asmyth | K17: Road2 | L17: ROADWAY DESIGN | Q17: C_DE232Series.xlsm
A18: 100-20 | B18: 2008-08-01 | D18: CHEROKEE | I18: Paul W. Flattery | J18: pflatte | K18: Road3 | L18: ROADWAY DESIGN | Q18: C_DE252Series.xlsm
A19: 100-21 | B19: 2008-08-01 | D19: CHICKASAW | I19: Kelly C. Bell | J19: kbell | K19: Road3 | L19: ROADWAY DESIGN | Q19: C_DE253Series.xlsm
A20: 100-22 | B20: 2008-08-01 | D20: CLARKE | I20: Angela K. Johnson | J20: ajohns1 | K20: Road3 | L20: ROADWAY DESIGN | Q20: C_DE254Series.xlsm
A21: 100-23 | B21: 2010-10-19 | D21: CLAY | I21: Elijah D. Gansen | J21: egansen | K21: Road3 | L21: ROADWAY DESIGN | Q21: C_DE259Series.xlsm
A22: 100-24 | B22: 2013-04-16 | D22: CLAYTON | I22: James R. Schoenrock | J22: jschoen | K22: Consultant | L22: ROADWAY DESIGN | Q22: C_DE262Series.xlsm
A23: 100-26 | B23: 2008-08-01 | D23: CLINTON | I23: Randall E. Schlei | J23: rschlie | K23: Consultant | L23: ROADWAY DESIGN | Q23: C_DE271Series.xlsm
A24: 100-27 | B24: 2009-10-20 | D24: CRAWFORD | I24: Seana K. Godbold | J24: sgodbol | K24: Roadside | L24: ROADWAY DESIGN | Q24: C_DE281Series.xlsm
A25: 100-28 | B25: 2010-10-19 | D25: DALLAS | I25: Robert L. Stanley | J25: rstanle | K25: Soils | L25: GEOTECHNICAL DESIGN | Q25: C_DE282Series.xlsm
A26: 101-4 | B26: 2002-04-30 | D26: DAVIS | I26: Stephen J. Megivern | J26: smegive | K26: Soils | L26: GEOTECHNICAL DESIGN | Q26: C_DE290Series.xlsm
A27: 101-5 | B27: 2002-04-30 | D27: DECATUR | I27: Mark A. Dell | J27: mdell | K27: Soils | L27: GEOTECHNICAL DESIGN | Q27: G_DE101Series.xlsm
A28: 101-6 | B28: 2002-04-30 | D28: DELAWARE | I28: David R. Claman | J28: dclaman | K28: Bridge | L28: HYDRAULIC DESIGN | Q28: J_DE108Series.xlsm
A29: 101-7 | B29: 2002-04-30 | D29: DES MOINES | I29: Zachary K. Abrams | J29: zabrams | K29: TrafficAndSafety | L29: ROADWAY DESIGN | Q29: J_DE111Series.xlsm
A30: 101-8 | B30: 2013-04-16 | D30: DICKINSON | I30: Engineer of Record | J30: Khocket | K30: Methods | L30: ROADWAY DESIGN | Q30: J_DE113Series.xlsm
A31: 101-13 | B31: 2004-04-20 | D31: DUBUQUE | I31: William L. Kaufman | J31: wkaufma | K31: Bridge | L31: HYDRAULIC DESIGN | Q31: S_DE113Series.xlsm
A32: 101-16 | B32: 2009-10-20 | D32: EMMET | I32: David J. Heer | J32: dheer | K32: Soils | L32: GEOTECHNICAL DESIGN
A33: 101-17 | B33: 2011-04-19 | D33: FAYETTE
A34: 101-18 | B34: 2011-04-19 | D34: FLOYD
A35: 102-3 | B35: 2013-04-16 | D35: FRANKLIN
A36: 102-4 | B36: 2011-10-18 | D36: FREMONT
A37: 102-5 | B37: 2012-10-16 | D37: GREENE
A38: 102-5A | B38: 2008-08-01 | D38: GRUNDY
A39: 102-6C | B39: 2011-10-18 | D39: GUTHRIE
A40: 102-10 | B40: 2008-08-01 | D40: HAMILTON
A41: 102-11 | B41: 2008-08-01 | D41: HANCOCK
A42: 102-12 | B42: 2008-08-01 | D42: HARDIN
A43: 102-14 | B43: 2012-04-17 | D43: HARRISON
A44: 102-15 | B44: 2008-08-01 | D44: HENRY
A45: 103-1 | B45: 2010-10-19 | D45: HOWARD
A46: 103-3 | B46: 2012-10-16 | D46: HUMBOLDT
A47: 103-4 | B47: 2011-04-19 | D47: IDA
A48: 103-5 | B48: 2008-08-01 | D48: IOWA
A49: 103-6 | B49: 2011-04-19 | D49: JACKSON
A50: 103-7 | B50: 2008-08-01 | D50: JASPER
A51: 104-3 | B51: 2012-10-16 | D51: JEFFERSON
A52: 104-4 | B52: 2009-10-20 | D52: JOHNSON
A53: 104-5A | B53: 2011-10-18 | D53: JONES
A54: 104-5B | B54: 2011-10-18 | D54: KEOKUK
A55: 104-5C | B55: 2012-04-17 | D55: KOSSUTH
A56: 104-8 | B56: 2008-08-01 | D56: LEE
A57: 104-8A | B57: 2010-04-20 | D57: LINN
A58: 104-9 | B58: 2012-04-17 | D58: LOUISA
A59: 104-10 | B59: 2008-08-01 | D59: LUCAS
A60: 104-11 | B60: 2008-08-01 | D60: LYON
A61: 104-12 | B61: 2012-10-16 | D61: MADISON
A62: 104-13 | B62: 2013-04-16 | D62: MAHASKA
A63: 105-1 | B63: 1994-09-27 | D63: MARION
A64: 105-3 | B64: 2005-10-18 | D64: MARSHALL
A65: 105-4 | B65: 2011-10-18 | D65: MILLS
A66: 106-1 | B66: 2008-08-01 | D66: MITCHELL
A67: 106-2 | B67: 2008-08-01 | D67: MONONA
A68: 106-3 | B68: 2008-08-01 | D68: MONROE
A69: 106-4 | B69: 2013-04-16 | D69: MONTGOMERY
A70: 106-5 | B70: 2008-08-01 | D70: MUSCATINE
A71: 106-7 | B71: 2008-08-01 | D71: O'BRIEN
A72: 106-8 | B72: 2011-04-19 | D72: OSCEOLA
A73: 107-7 | B73: 2008-08-01 | D73: PAGE
A74: 107-22 | B74: 2013-04-16 | D74: PALO ALTO
A75: 107-23 | B75: 2011-10-18 | D75: PLYMOUTH
A76: 107-24 | B76: 2008-08-01 | D76: POCAHONTAS
A77: 107-25 | B77: 2008-08-01 | D77: POLK
A78: 107-29 | B78: 2012-04-17 | D78: POTTAWATTAMIE
A79: 107-30 | B79: 2012-04-17 | D79: POWESHIEK
A80: 107-31 | B80: 2011-04-19 | D80: RINGGOLD
A81: 108-1 | B81: 2008-08-01 | D81: SAC
A82: 108-2 | B82: 2008-08-01 | D82: SCOTT
A83: 108-2A | B83: 2008-08-01 | D83: SHELBY
A84: 108-8A | B84: 2010-10-19 | D84: SIOUX
A85: 108-8B | B85: 2011-10-18 | D85: STORY
A86: 108-8C | B86: 2011-10-18 | D86: TAMA
A87: 108-8D | B87: 2010-10-19 | D87: TAYLOR
A88: 108-9A | B88: 2010-04-20 | D88: UNION
A89: 108-11A | B89: 2008-08-01 | D89: VAN BUREN
A90: 108-12 | B90: 2008-08-01 | D90: WAPELLO
A91: 108-13A | B91: 2008-08-01 | D91: WARREN
A92: 108-15 | B92: 2008-08-01 | D92: WASHINGTON
A93: 108-16 | B93: 2010-10-19 | D93: WAYNE
A94: 108-18 | B94: 2011-10-18 | D94: WEBSTER
A95: 108-18B | B95: 2012-10-16 | D95: WINNEBAGO
A96: 108-22 | B96: 2013-04-16 | D96: WINNESHIEK
A97: 108-23A | B97: 2008-08-01 | D97: WOODBURY
A98: 108-24 | B98: 2011-04-19 | D98: WORTH
A99: 108-26A | B99: 2008-08-01 | D99: WRIGHT
A100: 108-27 | B100: 2012-10-16
A101: 108-28 | B101: 2008-08-01 | D101: SeriesList.xlsx
A102: 108-29 | B102: 2012-10-16
A103: 108-30 | B103: 2013-04-16
A104: 108-33 | B104: 2013-04-16
A105: 108-34 | B105: 2010-10-19
A106: 108-35 | B106: 2012-04-17
A107: 110-1 | B107: 2013-04-16
A108: 110-2 | B108: 2013-04-16
A109: 110-3 | B109: 2008-08-01
A110: 110-4 | B110: 2008-08-01
A111: 110-5 | B111: 2008-08-01
A112: 110-6 | B112: 2008-08-01
A113: 110-7A | B113: 2012-04-17
A114: 110-7B | B114: 2010-10-19
A115: 110-8 | B115: 2008-08-01
A116: 110-9 | B116: 2011-10-18
A117: 110-10 | B117: 2008-08-01
A118: 110-11 | B118: 2008-08-01
A119: 110-12A | B119: 2013-04-16
A120: 110-13 | B120: 2010-04-20
A121: 110-14 | B121: 2013-04-16
A122: 110-15 | B122: 2013-04-16
A123: 110-16 | B123: 2013-04-16
A124: 111-1 | B124: 2012-04-17
A125: 111-2 | B125: 1989-02-28
A126: 111-23 | B126: 2002-10-29
A127: 111-25 | B127: 2011-10-18
A128: 112-3 | B128: 2013-04-16
A129: 112-5 | B129: 2008-08-01
A130: 112-6 | B130: 2013-04-16
A131: 112-7 | B131: 2010-10-19
A132: 112-8 | B132: 2012-10-16
A133: 112-9 | B133: 2012-04-17
A134: 112-10 | B134: 2011-04-19
A135: 113-1 | B135: 2013-04-16
A136: 113-2 | B136: 2013-04-16
A137: 113-3 | B137: 2011-10-18
A138: 113-10 | B138: 2012-10-16
A139: 213-2 | B139: 2011-10-18
A140: 213-3 | B140: 2011-10-18
A141: 231-1 | B141: 2011-10-18
A142: 231-2 | B142: 2012-10-16
A143: 232-3A | B143: 2012-10-16
A144: 232-3B | B144: 2012-10-16
A145: 232-3C | B145: 2012-10-16
A146: 232-3D | B146: 2012-10-16
A147: 232-4 | B147: 2011-10-18
A148: 232-6 | B148: 2011-10-18
A149: 232-7 | B149: 2012-10-16
A150: 232-9 | B150: 2011-10-18
A151: 232-11 | B151: 2012-10-16
A152: 241-5 | B152: 2011-10-18
A153: 252-1 | B153: 2012-10-16
A154: 253-1 | B154: 2011-10-18
A155: 254-1 | B155: 2001-10-02
A156: 262-3 | B156: 2012-10-16
A157: 262-4 | B157: 2013-04-16
A158: 262-5 | B158: 2005-10-18
A159: 262-6 | B159: 2005-10-18
A160: 263-1 | B160: 2011-10-18
A161: 271-1 | B161: 2011-10-18
A162: 271-2 | B162: 1985-08-20
A163: 271-4 | B163: 2011-10-18
A164: 271-9 | B164: 1994-09-27
